bitfinex-derivatives/quotes_SOLF0:USTF0_20240829
["timestamp","ask_amount","ask_price","bid_price","bid_amount"]
[1724948285112,0.04750089,146.06,146.0,18.62322004]
[1724948285508,3.46990089,146.06,146.02,3.4231]
[1724948285712,0.04750089,146.06,146.02,10.51]
[1724948287113,0.04750089,146.06,146.05,3.4226]
[1724948287512,0.04750089,146.06,146.02,10.51]
[1724948287712,0.04750089,146.06,146.01,10.51]
[1724948288312,3.47000089,146.06,146.03,3.4229]
[1724948288514,13.98000089,146.06,146.03,3.4229]
[1724948289722,10.51,146.05,146.0,8.11322004]
[1724948289914,0.04750089,146.06,146.0,8.11322004]
[1724948289915,10.55750089,146.06,146.0,8.11322004]
[1724948290316,10.55750089,146.06,146.0,4.64]
[1724948290514,10.55750089,146.06,146.0,8.00769332]
[1724948291015,0.04750089,146.06,146.05,10.51]
[1724948291221,0.04750089,146.06,146.05,13.9326]
[1724948291919,0.04750089,146.06,146.05,18.5726]
[1724948292120,0.04750089,146.06,146.05,34.3526]
[1724948292317,29.63020552,146.15,146.05,30.93]
[1724948292318,3.4206,146.14,146.05,30.93]
[1724948292517,26.29,146.15,146.05,30.93]
[1724948292923,29.74657706,146.15,146.05,30.93]
[1724948293119,26.29,146.15,146.05,30.93]
[1724948293312,0.05236681,146.11,146.09,0.05203609]
[1724948294020,0.05236681,146.11,146.09,3.47353609]
[1724948294225,0.05236681,146.11,146.09,0.05203609]
[1724948294424,0.05236681,146.11,146.1,3.4214]
[1724948295525,0.05236681,146.11,146.09,0.05203609]
[1724948295526,0.05236681,146.11,146.09,3.47353609]
[1724948296721,0.05236681,146.11,146.09,0.05203609]
[1724948297119,3.47366681,146.11,146.09,0.05203609]
[1724948297316,0.05236681,146.11,146.05,26.29]
[1724948297924,0.05236681,146.11,146.08,3.4217]
[1724948298823,0.05236681,146.11,146.05,26.29]
[1724948299424,3.4215,146.1,146.05,26.29]
[1724948299622,0.05236681,146.11,146.06,3.4222]
[1724948299827,3.4218,146.09,146.06,3.4222]
[1724948300127,26.34236681,146.11,146.02,4.64]
[1724948300425,3.4222,146.07,146.04,3.4227]
[1724948300928,3.4222,146.07,146.03,3.4229]
[1724948301313,0.04936256,146.08,146.04,3.4228]
[1724948301518,3.4222,146.07,146.04,3.4228]
[1724948301720,0.04936256,146.08,146.0,4.64]
[1724948301917,26.29,146.09,146.0,4.64]
[1724948301918,0.04945074,146.05,146.02,3.4231]
[1724948302322,3.47215074,146.05,146.02,3.4231]
[1724948303824,0.04945074,146.05,146.01,3.4235]
[1724948304025,0.04945074,146.05,145.96,28.9777]
[1724948304326,0.045578,146.02,145.96,33.6177]
[1724948304529,0.045578,146.02,145.96,37.12205711]
[1724948305026,0.045578,146.02,145.96,34.43435711]
[1724948305228,26.335578,146.02,145.94,26.29]
[1724948305425,0.05033778,145.99,145.92,33.4616]
[1724948306228,3.4244,145.98,145.94,3.425]
[1724948306426,3.4244,145.98,145.94,3.42427707]
[1724948306626,3.4244,145.98,145.92,7.1716]
[1724948307033,3.4244,145.98,145.94,3.4251]
[1724948307234,3.4244,145.98,145.94,6.8955292]
[1724948307434,3.4244,145.98,145.95,3.4249]
[1724948307731,26.29,145.96,145.86,26.29]
[1724948308036,0.04846566,145.92,145.86,27.5553]
[1724948308234,0.04846566,145.92,145.89,3.4262]
[1724948309235,3.47426566,145.92,145.88,3.4265]
[1724948309632,0.04846566,145.92,145.87,1.3018]
[1724948309829,0.04846566,145.92,145.86,1.2653]
[1724948310029,0.04846566,145.92,145.86,2.6505]
[1724948310226,3.4262,145.9,145.86,3.4269]
[1724948310428,26.33846566,145.92,145.83,26.29]
[1724948310737,0.05207708,145.89,145.83,26.29]
[1724948310933,3.47837708,145.89,145.85,3.4271]
[1724948311434,3.47837708,145.89,145.81,3.36429651]
[1724948311638,3.47837708,145.89,145.83,26.29]
[1724948311938,0.04446122,145.87,145.83,26.29]
[1724948312126,0.04446122,145.87,145.86,3.4269]
[1724948312326,0.04446122,145.87,145.83,26.29]
[1724948312735,0.04446122,145.87,145.84,3.4273]
[1724948312937,3.47126122,145.87,145.84,3.4273]
[1724948313240,0.04446122,145.87,145.81,30.93]
[1724948313537,0.04446122,145.87,145.81,26.29]
[1724948314240,3.4271,145.86,145.83,3.4276]
[1724948314440,0.04446122,145.87,145.81,26.29]
[1724948314737,3.47136122,145.87,145.83,3.4276]
[1724948315038,3.47136122,145.87,145.81,26.29]
[1724948315233,0.04446122,145.87,145.81,26.29]
[1724948315436,0.04446122,145.87,145.84,3.4273]
[1724948315632,0.04446122,145.87,145.83,26.29]
[1724948316136,0.04446122,145.87,145.85,3.4271]
[1724948317039,0.04446122,145.87,145.83,26.29]
[1724948317040,0.04446122,145.87,145.86,3.427]
[1724948317339,0.04446122,145.87,145.84,1.3795]
[1724948317541,0.04446122,145.87,145.85,3.4272]
[1724948318335,0.04446122,145.87,145.85,3.4273]
[1724948318539,0.04446122,145.87,145.84,1.3795]
[1724948318743,0.04446122,145.87,145.85,3.427]
[1724948319040,0.04446122,145.87,145.84,1.3795]
[1724948319240,0.04446122,145.87,145.86,3.427]
[1724948319633,0.04446122,145.87,145.84,2.697]
[1724948319830,0.04446122,145.87,145.85,3.4271]
[1724948320038,0.04446122,145.87,145.84,2.697]
[1724948320339,3.426,145.91,145.86,26.29]
[1724948320742,5.9447,145.94,145.86,26.29]
[1724948321041,4.64,145.96,145.88,26.29]
[1724948321443,0.05097771,145.93,145.91,0.04757842]
[1724948322243,3.4256,145.92,145.91,0.04757842]
[1724948323239,29.7156,145.92,145.91,0.04757842]
[1724948324447,3.4267,145.88,145.85,3.4271]
[1724948324747,26.29,145.9,145.85,3.4271]
[1724948325547,0.05052823,145.89,145.84,6.1244]
[1724948325842,0.05052823,145.89,145.84,2.697]
[1724948326042,26.29,145.88,145.77,6.8584]
[1724948326344,0.04697277,145.84,145.78,26.29]
[1724948326646,0.04697277,145.84,145.83,3.4277]
[1724948327139,0.04697277,145.84,145.78,26.29]
[1724948327345,0.04697277,145.84,145.78,2.7319]
[1724948327541,0.04697277,145.84,145.79,26.29]
[1724948328340,0.04697277,145.84,145.81,3.4281]
[1724948329044,0.04697277,145.84,145.79,26.29]
[1724948329850,0.04697277,145.84,145.83,3.4277]
[1724948330048,2.6385,145.95,145.83,26.29]
[1724948330240,4.64,145.93,145.87,3.4267]
[1724948330440,4.64,145.93,145.85,26.29]
[1724948330742,3.4264,145.89,145.85,3.4271]
[1724948331251,0.04314339,145.88,145.86,0.04313863]
[1724948331445,3.46974339,145.88,145.86,0.04313863]
[1724948331952,3.4268,145.87,145.86,0.04313863]
[1724948332650,3.4274,145.85,145.81,3.428]
[1724948333043,3.4274,145.85,145.79,4.64]
[1724948333649,26.29,145.87,145.79,4.64]
[1724948333650,0.05088224,145.83,145.81,3.4281]
[1724948333848,0.05088224,145.83,145.77,7.2669]
[1724948334350,0.05088224,145.83,145.78,26.29]
[1724948336244,0.05088224,145.83,145.82,3.428]
[1724948336561,4.64,145.88,145.8,26.29]
[1724948336853,3.4271,145.86,145.83,3.4276]
[1724948337149,3.4275,145.85,145.81,3.428]
[1724948337354,3.4275,145.85,145.78,26.29]
[1724948337551,0.04830603,145.83,145.8,0.04612875]
[1724948338257,0.04830603,145.83,145.81,3.4282]
[1724948339746,3.47610603,145.83,145.81,3.4282]
[1724948340053,3.47610603,145.83,145.8,3.47442875]
[1724948340354,0.04830603,145.83,145.8,0.04612875]
[1724948340546,26.33830603,145.83,145.77,4.64]
[1724948340753,30.97830603,145.83,145.73,26.29]
[1724948341052,30.93,145.83,145.73,29.75313627]
[1724948341257,26.29,145.79,145.72,2.6135]
[1724948341856,0.04314644,145.77,145.72,2.6135]
[1724948342460,0.04314644,145.77,145.76,3.4294]
[1724948342848,0.04314644,145.77,145.76,4.7819]
[1724948343653,30.93,145.83,145.76,1.3525]
[1724948343857,26.29,145.85,145.76,1.3525]
[1724948344053,4.64,145.86,145.77,26.29]
[1724948344254,4.64,145.86,145.81,3.428]
[1724948344652,26.29,145.87,145.82,0.05080118]
[1724948344859,0.04403638,145.85,145.82,0.05080118]
[1724948345054,3.47133638,145.85,145.82,0.05080118]
[1724948345255,0.04403638,145.85,145.82,0.05080118]
[1724948346563,0.04403638,145.85,145.83,3.4276]
[1724948347264,0.04403638,145.85,145.84,3.4275]
[1724948347865,0.04403638,145.85,145.82,0.05080118]
[1724948348466,26.33403638,145.85,145.82,0.05080118]
[1724948349359,0.04403638,145.85,145.82,0.05080118]
[1724948349860,3.4276,145.84,145.82,0.05080118]
[1724948351259,3.47143638,145.85,145.82,0.05080118]
[1724948351565,0.04403638,145.85,145.82,0.05080118]
[1724948351760,0.04403638,145.85,145.83,3.4277]
[1724948352464,3.47143638,145.85,145.82,0.05080118]
[1724948353166,0.04403638,145.85,145.82,0.05080118]
[1724948353561,0.04403638,145.85,145.83,3.4275]
[1724948354264,0.04403638,145.85,145.84,3.4275]
[1724948355470,0.04403638,145.85,145.83,3.4276]
[1724948356366,0.04403638,145.85,145.84,3.4275]
[1724948358475,26.29,145.92,145.87,3.4266]
[1724948358673,2.6247,145.95,145.87,3.4266]
[1724948358674,26.29,145.94,145.87,3.4266]
[1724948358869,30.93,145.94,145.83,26.29]
[1724948359177,26.29,145.92,145.86,3.4269]
[1724948359379,3.4265,145.89,145.86,3.4269]
[1724948359580,3.47100579,145.89,145.86,0.04417627]
[1724948360170,0.04450579,145.89,145.86,0.04417627]
[1724948360777,3.47100579,145.89,145.86,0.04417627]
[1724948360981,3.47100579,145.89,145.86,3.47107627]
[1724948361585,0.04450579,145.89,145.86,3.47107627]
[1724948362083,3.47100579,145.89,145.86,3.47107627]
[1724948362588,3.47100579,145.89,145.87,3.4268]
[1724948363089,0.04450579,145.89,145.87,3.4266]
[1724948363290,0.04450579,145.89,145.86,0.04417627]
[1724948363681,0.04450579,145.89,145.87,3.4268]
[1724948365182,0.04450579,145.89,145.88,3.4266]
[1724948366086,0.04450579,145.89,145.86,0.04417627]
[1724948367394,0.04450579,145.89,145.88,3.4266]
[1724948368995,0.04450579,145.89,145.86,0.04417627]
[1724948369192,3.4266,145.88,145.86,0.04417627]
[1724948369390,0.04450579,145.89,145.86,0.04417627]
[1724948369889,3.4266,145.88,145.86,0.04417627]
[1724948370291,3.4268,145.87,145.86,0.04417627]
[1724948372093,3.4268,145.88,145.86,0.04417627]
[1724948373397,3.4268,145.87,145.86,0.04417627]
[1724948377897,0.04450579,145.89,145.86,0.04417627]
[1724948378097,0.04450579,145.89,145.86,3.47107627]
[1724948378699,3.4268,145.87,145.86,0.04417627]
[1724948379401,0.04450579,145.89,145.86,0.04417627]
[1724948380002,3.4268,145.87,145.86,0.04417627]
[1724948380893,3.4267,145.88,145.86,0.04417627]
[1724948381097,0.04450579,145.89,145.86,0.04417627]
[1724948382906,0.04450579,145.89,145.88,3.4266]
[1724948384300,3.4253,145.94,145.91,3.4258]
[1724948385403,3.4253,145.94,145.91,0.04890449]
[1724948385404,0.04900199,145.94,145.91,0.04890449]
[1724948385607,0.04900199,145.94,145.91,26.33890449]
[1724948385802,0.04900199,145.94,145.93,3.4254]
[1724948386105,0.04900199,145.94,145.91,0.04890449]
[1724948386297,0.04900199,145.94,145.93,3.4254]
[1724948386598,0.04900199,145.94,145.93,29.7154]
[1724948386797,3.4239,146.0,145.96,3.4245]
[1724948387102,26.29,146.05,145.95,26.29]
[1724948387300,30.93,146.05,145.95,30.93]
[1724948387498,3.4234,146.02,145.98,3.424]
[1724948387804,0.04377597,146.01,145.99,0.04666443]
[1724948388000,3.46747597,146.01,145.99,0.04666443]
[1724948389202,3.4238,146.0,145.99,0.04666443]
[1724948389402,0.04377597,146.01,145.99,0.04666443]
[1724948390400,3.4238,146.0,145.99,0.04666443]
[1724948390801,0.04377597,146.01,145.99,0.04666443]
[1724948391000,3.46737597,146.01,145.99,0.04666443]
[1724948393120,3.4238,146.0,145.99,0.04666443]
[1724948400510,0.04377597,146.01,145.99,0.04666443]
[1724948400511,3.46737597,146.01,145.99,0.04666443]
[1724948401716,3.46737597,146.01,145.99,3.47056443]
[1724948402214,3.46737597,146.01,145.99,0.04666443]
[1724948403612,3.46737597,146.01,145.99,3.47066443]
[1724948403807,0.04377597,146.01,145.99,0.04666443]
[1724948404210,0.04377597,146.01,146.0,3.4238]
[1724948404816,0.04377597,146.01,145.99,3.47056443]
[1724948405017,0.04377597,146.01,145.99,0.04666443]
[1724948405516,3.4238,146.0,145.99,0.04666443]
[1724948408021,3.4248,145.96,145.9,32.2083]
[1724948408316,26.29,145.98,145.91,3.4257]
[1724948408518,26.29,145.98,145.9,27.5883]
[1724948408912,3.4248,145.96,145.9,27.5883]
[1724948409114,0.0504754,145.94,145.92,3.47521298]
[1724948411313,0.0504754,145.94,145.93,3.4254]
[1724948411819,0.0504754,145.94,145.93,29.7154]
[1724948412115,3.4242,145.99,145.95,3.4249]
[1724948412325,4.62,146.03,145.93,27.5774]
[1724948412624,3.4239,146.0,145.96,3.4246]
[1724948412916,4.62,146.03,145.96,3.4246]
[1724948413213,0.04804379,146.01,145.98,0.04796298]
[1724948414915,3.424,145.99,145.98,0.04796298]
[1724948418221,3.4253,145.94,145.91,3.4257]
[1724948418520,26.29,145.99,145.9,2.6127]
[1724948418817,3.4255,145.93,145.9,6.0386]
[1724948419020,3.4255,145.93,145.9,2.6127]
[1724948419216,3.47360557,145.93,145.9,2.66534696]
[1724948419811,0.04810557,145.93,145.9,2.66534696]
[1724948420016,0.04810557,145.93,145.9,1.35094696]
[1724948420222,0.04810557,145.93,145.9,0.05264696]
[1724948420719,3.4259,145.91,145.9,0.05264696]
[1724948421311,3.4257,145.92,145.9,0.05264696]
[1724948421518,0.04810557,145.93,145.9,0.05264696]
[1724948421921,3.4256,145.92,145.9,0.05264696]
[1724948422114,0.04810557,145.93,145.9,0.05264696]
[1724948422312,0.04810557,145.93,145.9,3.47874696]
[1724948422822,3.47360557,145.93,145.9,3.47874696]
[1724948423022,0.04810557,145.93,145.9,0.05264696]
[1724948423220,3.4258,145.92,145.9,0.05264696]
[1724948423415,0.04810557,145.93,145.9,0.05264696]
[1724948423817,3.4258,145.92,145.9,0.05264696]
[1724948425425,0.04810557,145.93,145.9,0.05264696]
[1724948426119,0.04810557,145.93,145.91,3.4257]
[1724948427718,0.04810557,145.93,145.92,3.4256]
[1724948428424,0.04810557,145.93,145.91,3.4258]
[1724948432428,3.47350557,145.93,145.91,3.4258]
[1724948433123,3.47350557,145.93,145.9,3.47864696]
[1724948433324,3.47350557,145.93,145.9,0.05264696]
[1724948433526,3.4256,145.92,145.9,0.05264696]
[1724948435328,3.4256,145.92,145.9,3.47864696]
[1724948436328,3.4256,145.92,145.9,0.05264696]
[1724948436631,3.4259,145.91,145.9,0.05264696]
[1724948438635,3.4257,145.92,145.9,0.05264696]
[1724948439032,0.04810557,145.93,145.9,0.05264696]
[1724948439626,3.47360557,145.93,145.9,3.47864696]
[1724948440834,3.4257,145.92,145.9,0.05264696]
[1724948441236,3.4259,145.91,145.9,0.05264696]
[1724948447541,3.427,145.87,145.83,1.2677]
[1724948447731,3.44513897,145.96,145.83,1.2677]
[1724948447732,26.29,145.89,145.83,1.2677]
[1724948447931,26.29,145.89,145.81,4.64]
[1724948448128,26.29,145.89,145.82,3.4279]
[1724948448341,3.4274,145.85,145.82,3.4279]
[1724948448539,26.29,145.89,145.81,3.428]
[1724948448736,3.47277009,145.85,145.82,0.04821327]
[1724948449041,3.47277009,145.85,145.82,3.47621327]
[1724948449243,0.04537009,145.85,145.82,0.04821327]
[1724948449430,3.4277,145.84,145.82,0.04821327]
[1724948450132,3.47277009,145.85,145.82,3.47621327]
[1724948450738,3.4275,145.84,145.82,0.04821327]
[1724948451638,3.4275,145.84,145.82,3.47621327]
[1724948451837,3.47277009,145.85,145.82,3.47621327]
[1724948452947,0.04537009,145.85,145.82,0.04821327]
[1724948453944,3.4277,145.83,145.82,0.04821327]
[1724948457745,3.4275,145.84,145.82,0.04821327]
[1724948458349,3.4277,145.83,145.82,0.04821327]
[1724948459949,29.7177,145.83,145.82,0.04821327]
[1724948460543,3.4277,145.83,145.82,0.04821327]
[1724948461849,3.4276,145.84,145.82,0.04821327]
[1724948462048,0.04537009,145.85,145.82,0.04821327]
[1724948462452,10.53,145.84,145.82,0.04821327]
[1724948463047,3.4277,145.83,145.82,0.04821327]
[1724948464349,3.4276,145.84,145.82,0.04821327]
[1724948464656,10.57537009,145.85,145.82,0.04821327]
[1724948464858,3.4277,145.83,145.82,0.04821327]
[1724948465051,0.04537009,145.85,145.82,0.04821327]
[1724948465460,0.04537009,145.85,145.82,3.47621327]
[1724948465461,3.47267009,145.85,145.82,3.47621327]
[1724948465654,0.04537009,145.85,145.82,0.04821327]
[1724948465860,3.4277,145.84,145.82,0.04821327]
[1724948468461,13.9577,145.83,145.82,0.04821327]
[1724948468963,3.4283,145.81,145.78,3.4288]
[1724948469160,10.53,145.8,145.78,3.4288]
[1724948469564,13.9585,145.8,145.77,3.429]
[1724948469862,10.53,145.79,145.76,1.2623]
[1724948470054,0.04472308,145.79,145.76,4.73576599]
[1724948470253,0.04472308,145.79,145.76,1.30656599]
[1724948470661,26.34,145.78,145.76,0.04426599]
[1724948471570,26.34,145.77,145.7,1.3419]
[1724948471865,26.34,145.75,145.7,1.3419]
[1724948472260,26.34,145.73,145.58,6.867]
[1724948472468,26.34,145.73,145.62,26.34]
[1724948472666,0.04639957,145.69,145.63,1.24962247]
[1724948472965,0.04639957,145.69,145.65,26.34]
[1724948473159,0.04639957,145.69,145.68,3.4313]
[1724948473358,0.04639957,145.69,145.68,6.87235602]
[1724948473563,26.34,145.75,145.68,3.44105602]
[1724948473759,26.34,145.75,145.66,4.64]
[1724948473760,3.4299,145.74,145.7,3.4306]
[1724948474165,3.4299,145.74,145.67,2.633]
[1724948474370,3.4299,145.74,145.7,3.4306]
[1724948474568,3.4299,145.74,145.71,0.04639957]
[1724948474569,0.0459859,145.73,145.71,0.04639957]
[1724948474971,0.0459859,145.73,145.71,3.47699957]
[1724948475365,29.8160859,145.73,145.71,0.04639957]
[1724948475670,26.3859859,145.73,145.71,0.04639957]
[1724948475969,0.0459859,145.73,145.71,0.04639957]
[1724948476469,0.0459859,145.73,145.72,3.4303]
[1724948478764,2.6388,145.82,145.71,0.04639957]
[1724948478976,26.34,145.81,145.71,26.34]
[1724948479274,26.34,145.81,145.7,4.64]
[1724948479568,4.64,145.83,145.75,26.34]
[1724948479569,3.4278,145.83,145.75,26.34]
[1724948479774,0.04832515,145.8,145.79,3.4285]
[1724948482167,0.04832515,145.8,145.78,0.05041163]
[1724948482963,26.38832515,145.8,145.78,0.05041163]
[1724948484677,3.4287,145.79,145.78,0.05041163]
[1724948484872,54.03222515,145.8,145.73,3.43]
[1724948485084,3.4294,145.76,145.73,3.43]
[1724948485567,3.4299,145.74,145.7,4.64]
[1724948485771,26.34,145.75,145.69,2.6049]
[1724948486074,0.04805439,145.73,145.71,3.47257384]
[1724948487271,3.47815439,145.73,145.71,0.04197384]
[1724948488872,3.4303,145.72,145.71,0.04197384]
[1724948491974,3.47825439,145.73,145.71,0.04197384]
[1724948492274,0.04805439,145.73,145.71,0.04197384]
[1724948492478,3.47825439,145.73,145.71,0.04197384]
[1724948493179,3.4303,145.72,145.71,0.04197384]
[1724948493781,0.04805439,145.73,145.71,0.04197384]
[1724948493982,3.47825439,145.73,145.71,0.04197384]
[1724948494778,0.04805439,145.73,145.71,3.47237384]
[1724948495274,3.47825439,145.73,145.71,3.47237384]
[1724948495478,3.47825439,145.73,145.71,0.04197384]
[1724948496183,3.4303,145.72,145.71,0.04197384]
[1724948497575,3.47825439,145.73,145.71,0.04197384]
[1724948497777,0.04805439,145.73,145.71,0.04197384]
[1724948498183,3.4303,145.72,145.71,0.04197384]
[1724948502984,26.38805439,145.73,145.66,3.42116354]
[1724948502985,26.38805439,145.73,145.66,3.4316]
[1724948503189,26.34,145.69,145.62,1.2693]
[1724948503486,3.4314,145.68,145.65,3.4318]
[1724948503782,0.0514039,145.68,145.62,27.6093]
[1724948503984,0.0514039,145.68,145.66,3.4317]
[1724948504277,0.0514039,145.68,145.62,1.2693]
[1724948504484,0.0514039,145.68,145.62,27.6093]
[1724948504674,0.0514039,145.68,145.66,3.4315]
[1724948505680,0.0514039,145.68,145.67,3.4315]
[1724948506877,26.34,145.73,145.68,3.4311]
[1724948507082,26.34,145.73,145.66,3.50605957]
[1724948507485,3.4307,145.71,145.68,3.4312]
[1724948507887,3.47522241,145.71,145.68,3.476153]
[1724948508189,3.431,145.69,145.68,0.044953]
[1724948509378,3.4309,145.7,145.68,0.044953]
[1724948509583,26.38452241,145.71,145.68,0.044953]
[1724948509978,10.57452241,145.71,145.68,0.044953]
[1724948510384,3.431,145.7,145.68,0.044953]
[1724948510589,13.961,145.7,145.68,0.044953]
[1724948511180,3.431,145.69,145.68,0.044953]
[1724948511488,10.53,145.7,145.68,0.044953]
[1724948511885,3.431,145.69,145.68,0.044953]
[1724948513788,13.961,145.69,145.68,0.044953]
[1724948514091,3.431,145.69,145.68,0.044953]
[1724948515982,13.961,145.69,145.68,0.044953]
[1724948517188,3.431,145.69,145.68,0.044953]
[1724948522083,3.4309,145.7,145.68,0.044953]
[1724948522289,10.57452241,145.71,145.68,0.044953]
[1724948522484,10.57452241,145.71,145.68,10.574953]
[1724948522485,0.04452241,145.71,145.68,10.574953]
[1724948522789,0.04452241,145.71,145.68,0.044953]
[1724948525194,3.4308,145.7,145.68,0.044953]
[1724948525795,10.53,145.69,145.68,0.044953]
[1724948526000,13.961,145.69,145.68,0.044953]
[1724948527093,10.53,145.69,145.68,0.044953]
[1724948527491,13.961,145.69,145.68,0.044953]
[1724948528902,10.53,145.69,145.68,0.044953]
[1724948529397,3.431,145.7,145.68,0.044953]
[1724948530697,13.961,145.69,145.68,0.044953]
[1724948531993,13.961,145.69,145.64,3.4322]
[1724948531994,3.4318,145.66,145.64,3.4322]
[1724948532195,13.9618,145.66,145.64,3.4322]
[1724948532900,13.9618,145.66,145.63,3.4324]
[1724948533102,14.00665042,145.66,145.63,3.4324]
[1724948533503,3.432,145.65,145.63,3.4324]
[1724948534207,14.00675042,145.66,145.63,3.4324]
[1724948535201,0.04485042,145.66,145.6,10.53]
[1724948535400,0.04485042,145.66,145.62,10.53]
[1724948535707,0.04485042,145.66,145.65,3.432]
[1724948536808,0.04485042,145.66,145.62,10.53]
[1724948537205,0.04485042,145.66,145.65,3.432]
[1724948540910,10.53,145.72,145.68,3.4311]
[1724948541113,3.4307,145.71,145.68,3.4311]
[1724948541809,3.4309,145.7,145.68,3.4311]
[1724948542109,14.01302237,145.7,145.68,0.04350874]
[1724948542714,13.961,145.69,145.68,0.04350874]
[1724948545413,3.48302237,145.7,145.68,0.04350874]
[1724948545612,10.58212237,145.7,145.68,0.04350874]
[1724948546014,14.01302237,145.7,145.68,0.04350874]
[1724948548115,3.48302237,145.7,145.68,0.04350874]
[1724948548616,0.05212237,145.7,145.68,3.47470874]
[1724948549018,0.05212237,145.7,145.69,3.431]
[1724948551327,13.9597,145.75,145.72,3.4302]
[1724948551623,10.53,145.75,145.72,3.4302]
[1724948551818,3.4299,145.74,145.68,10.53]
[1724948552216,0.04724162,145.72,145.7,0.05035701]
[1724948553324,0.04724162,145.72,145.71,3.4306]
[1724948555323,6.1607,145.79,145.75,3.4295]
[1724948555518,10.53,145.78,145.75,3.4295]
[1724948556326,3.4292,145.77,145.75,3.48193526]
[1724948556818,10.57838808,145.78,145.75,3.48193526]
[1724948556819,0.04838808,145.78,145.76,3.4293]
[1724948557020,3.47738808,145.78,145.75,0.05243526]
[1724948557217,10.53,145.77,145.75,0.05243526]
[1724948558124,13.9592,145.77,145.75,0.05243526]
[1724948558720,3.4294,145.76,145.75,0.05243526]
[1724948559223,13.9593,145.77,145.75,0.05243526]
[1724948561719,3.4294,145.76,145.75,0.05243526]
[1724948562829,3.4292,145.77,145.75,3.48203526]
[1724948563523,3.4294,145.76,145.75,0.05243526]
[1724948564628,3.4292,145.77,145.75,0.05243526]
[1724948564825,10.57838808,145.78,145.75,0.05243526]
[1724948565030,0.04838808,145.78,145.75,0.05243526]
[1724948565423,3.47738808,145.78,145.75,3.48183526]
[1724948566123,3.47738808,145.78,145.76,3.4294]
[1724948566524,3.47738808,145.78,145.75,0.05243526]
[1724948567227,3.47738808,145.78,145.75,3.48193526]
[1724948568333,3.47738808,145.78,145.76,3.4294]
[1724948568534,0.04838808,145.78,145.75,0.05243526]
[1724948568934,0.04838808,145.78,145.77,3.4292]
[1724948571430,0.04838808,145.78,145.77,13.9592]
[1724948572428,84.54725983,145.83,145.77,11.7843]
[1724948572627,84.54725983,145.83,145.79,10.53]
[1724948573032,84.54725983,145.83,145.81,3.428]
[1724948573434,84.59095905,145.83,145.81,3.47784272]
[1724948573937,0.04369922,145.83,145.82,3.428]
[1724948574134,0.04369922,145.83,145.82,13.958]
[1724948574434,10.53,145.85,145.78,10.53]
[1724948574631,10.53,145.85,145.79,4.68]
[1724948574935,10.53,145.85,145.78,10.53]
[1724948575139,10.53,145.85,145.78,15.21]
[1724948575332,0.04909466,145.83,145.8,10.57842368]
[1724948575728,0.04909466,145.83,145.82,3.428]
[1724948577034,3.4267,145.88,145.83,3.42704343]
[1724948577925,0.0512442,145.87,145.84,0.04963144]
[1724948579031,3.4781442,145.87,145.84,3.47703144]
[1724948579231,0.0512442,145.87,145.84,3.47703144]
[1724948579427,0.0512442,145.87,145.86,3.427]
[1724948581034,0.0512442,145.87,145.85,3.4272]
[1724948581734,3.4780442,145.87,145.84,3.47703144]
[1724948583143,3.4780442,145.87,145.85,3.4272]
[1724948583834,3.4272,145.86,145.84,0.04963144]
[1724948584235,0.0512442,145.87,145.84,0.04963144]
[1724948584441,3.4781442,145.87,145.84,3.47703144]
[1724948585039,3.4781442,145.87,145.85,3.4272]
[1724948585635,0.0512442,145.87,145.85,3.4273]
[1724948587631,3.4781442,145.87,145.85,3.4273]
[1724948587835,3.4781442,145.87,145.84,3.47703144]
[1724948588033,0.0512442,145.87,145.84,0.04963144]
[1724948588237,0.0512442,145.87,145.84,10.57963144]
[1724948588444,0.0512442,145.87,145.86,13.957]
[1724948589541,0.0512442,145.87,145.86,3.427]
[1724948593943,0.0512442,145.87,145.86,13.957]
[1724948595349,0.0512442,145.87,145.84,15.21963144]
[1724948596350,3.4273,145.85,145.84,0.04963144]
[1724948596750,0.0512442,145.87,145.84,0.04963144]
[1724948597250,0.0512442,145.87,145.85,10.53]